[Event "December 5 Late 2023"]
[Site "https://www.chess.com"]
[Date "2023.12.05"]
[Round "9"]
[White "Lopusiewicz, Piotr"]
[Black "Sanchez Alvares, Kelvin Antonio"]
[Result "0-1"]
[Board "63"]
[TimeControl "180+1"]
[WhiteFideId "1116029"]
[BlackFideId "3906680"]
[WhiteElo "2429"]
[BlackElo "2529"]
[WhiteTeam "POL"]
[BlackTeam "VEN"]
[WhiteClock "0:00:18"]
[BlackClock "0:00:43"]

1. d4 {[%clk 0:03:00]}  d5 {[%clk 0:02:58]} 2. c4 {[%clk 0:03:01]}  c6 {[%clk 0:02:58]} 3. Nf3 {[%clk 0:03:01]}  Nf6 {[%clk 0:02:57]} 4. cxd5 {[%clk 0:03:01]}  cxd5 {[%clk 0:02:57]} 5. Nc3 {[%clk 0:03:02]}  Nc6 {[%clk 0:02:57]} 6. Bf4 {[%clk 0:03:02]}  Bf5 {[%clk 0:02:57]} 7. Qb3 {[%clk 0:03:02]}  Na5 {[%clk 0:02:57]} 8. Qa4+ {[%clk 0:03:02]}  Bd7 {[%clk 0:02:57]} 9. Qc2 {[%clk 0:03:03]}  Rc8 {[%clk 0:02:57]} 10. e3 {[%clk 0:03:03]}  e6 {[%clk 0:02:57]} 11. Bd3 {[%clk 0:03:03]}  Nc4 {[%clk 0:02:54]} 12. O-O {[%clk 0:03:01]}  Bb4 {[%clk 0:02:53]} 13. Rfc1 {[%clk 0:02:56]}  O-O {[%clk 0:02:50]} 14. Ne5 {[%clk 0:02:55]}  b5 {[%clk 0:02:42]} 15. a4 {[%clk 0:02:44]}  Bxc3 {[%clk 0:02:15]} 16. bxc3 {[%clk 0:02:40]}  bxa4 {[%clk 0:02:13]} 17. Bg5 {[%clk 0:02:33]}  h6 {[%clk 0:02:08]} 18. Bxf6 {[%clk 0:02:33]}  gxf6 {[%clk 0:02:09]} 19. Nxd7 {[%clk 0:02:17]}  Qxd7 {[%clk 0:02:09]} 20. Qe2 {[%clk 0:02:03]}  f5 {[%clk 0:02:01]} 21. Qh5 {[%clk 0:02:03]}  Kg7 {[%clk 0:02:00]} 22. h3 {[%clk 0:01:43]}  Rg8 {[%clk 0:01:52]} 23. g4 {[%clk 0:01:42]}  fxg4 {[%clk 0:01:52]} 24. hxg4 {[%clk 0:01:42]}  Nb6 {[%clk 0:01:44]} 25. Kg2 {[%clk 0:01:39]}  Qe7 {[%clk 0:01:39]} 26. f4 {[%clk 0:01:33]}  Qf6 {[%clk 0:01:34]} 27. Rh1 {[%clk 0:01:26]}  Rxc3 {[%clk 0:01:28]} 28. Rad1 {[%clk 0:01:16]}  Kf8 {[%clk 0:01:23]} 29. Kf3 {[%clk 0:01:10]}  Nc4 {[%clk 0:01:16]} 30. Bxc4 {[%clk 0:01:04]}  Rxc4 {[%clk 0:01:14]} 31. Qxh6+ {[%clk 0:01:02]}  Qxh6 {[%clk 0:01:13]} 32. Rxh6 {[%clk 0:01:03]}  Ke7 {[%clk 0:01:12]} 33. Rb1 {[%clk 0:00:59]}  Rgc8 {[%clk 0:01:10]} 34. g5 {[%clk 0:00:59]}  R8c7 {[%clk 0:01:08]} 35. Rb8 {[%clk 0:00:40]}  a3 {[%clk 0:01:03]} 36. Rhh8 {[%clk 0:00:39]}  a2 {[%clk 0:00:59]} 37. Rbd8 {[%clk 0:00:37]}  Rd7 {[%clk 0:00:57]} 38. g6 {[%clk 0:00:31]}  a1=Q {[%clk 0:00:55]} 39. Rhe8+ {[%clk 0:00:21]}  Kf6 {[%clk 0:00:44]} 40. Rxd7 {[%clk 0:00:20]}  Qf1+ {[%clk 0:00:43]} 41. Kg3 {[%clk 0:00:18]}  Qg1+ {[%clk 0:00:43]} 0-1

[Event "December 5 Late 2023"]
[Site "https://www.chess.com"]
[Date "2023.12.05"]
[Round "9"]
[White "Tikhonov, Viacheslav"]
[Black "Blanco Diez, David"]
[Result "1-0"]
[Board "66"]
[TimeControl "180+1"]
[WhiteFideId "44196407"]
[BlackFideId "32032927"]
[WhiteElo "2519"]
[BlackElo "2415"]
[WhiteTeam "RUS"]
[BlackTeam "ESP"]
[WhiteClock "0:00:07"]
[BlackClock "0:00:00"]

1. e4 {[%clk 0:02:56]}  c5 {[%clk 0:02:58]} 2. Nf3 {[%clk 0:02:56]}  e6 {[%clk 0:02:58]} 3. b3 {[%clk 0:02:56]}  b6 {[%clk 0:02:58]} 4. Bb2 {[%clk 0:02:56]}  Bb7 {[%clk 0:02:59]} 5. Qe2 {[%clk 0:02:56]}  Nf6 {[%clk 0:02:56]} 6. e5 {[%clk 0:02:56]}  Nd5 {[%clk 0:02:55]} 7. g3 {[%clk 0:02:57]}  Nc6 {[%clk 0:02:46]} 8. Bg2 {[%clk 0:02:57]}  Be7 {[%clk 0:02:47]} 9. O-O {[%clk 0:02:57]}  O-O {[%clk 0:02:47]} 10. c4 {[%clk 0:02:58]}  Nc7 {[%clk 0:02:45]} 11. d4 {[%clk 0:02:58]}  Nxd4 {[%clk 0:02:38]} 12. Nxd4 {[%clk 0:02:58]}  Bxg2 {[%clk 0:02:38]} 13. Kxg2 {[%clk 0:02:51]}  cxd4 {[%clk 0:02:38]} 14. Bxd4 {[%clk 0:02:52]}  Qc8 {[%clk 0:02:13]} 15. Nd2 {[%clk 0:02:47]}  b5 {[%clk 0:02:10]} 16. Rac1 {[%clk 0:02:23]}  Qb7+ {[%clk 0:02:01]} 17. Kg1 {[%clk 0:02:22]}  a6 {[%clk 0:01:58]} 18. Ne4 {[%clk 0:02:20]}  bxc4 {[%clk 0:01:47]} 19. Rxc4 {[%clk 0:02:21]}  Nd5 {[%clk 0:01:41]} 20. Rfc1 {[%clk 0:02:12]}  Rfc8 {[%clk 0:01:38]} 21. h4 {[%clk 0:02:03]}  Nb4 {[%clk 0:01:21]} 22. Nd6 {[%clk 0:00:53]}  Bxd6 {[%clk 0:01:20]} 23. exd6 {[%clk 0:00:54]}  f6 {[%clk 0:00:40]} 24. Bxf6 {[%clk 0:00:48]}  Rxc4 {[%clk 0:00:20]} 25. Rxc4 {[%clk 0:00:47]}  Nd5 {[%clk 0:00:13]} 26. Bxg7 {[%clk 0:00:32]}  Kxg7 {[%clk 0:00:11]} 27. Qg4+ {[%clk 0:00:32]}  Kh8 {[%clk 0:00:07]} 28. Qd4+ {[%clk 0:00:32]}  Kg8 {[%clk 0:00:07]} 29. Qe5 {[%clk 0:00:33]}  Kf7 {[%clk 0:00:03]} 30. Rg4 {[%clk 0:00:30]}  Rg8 {[%clk 0:00:02]} 31. Qh5+ {[%clk 0:00:31]}  Kf8 {[%clk 0:00:02]} 32. Qh6+ {[%clk 0:00:28]}  Kf7 {[%clk 0:00:01]} 33. Qxh7+ {[%clk 0:00:29]}  Kf6 {[%clk 0:00:01]} 34. Qxg8 {[%clk 0:00:23]}  Ke5 {[%clk 0:00:02]} 35. Qf8 {[%clk 0:00:20]}  Qb5 {[%clk 0:00:01]} 36. Rg5+ {[%clk 0:00:18]}  Kd4 {[%clk 0:00:01]} 37. Qf3 {[%clk 0:00:16]}  Kc5 {[%clk 0:00:01]} 38. Qe4 {[%clk 0:00:07]}  Kxd6 {[%clk 0:00:01]} 39. Qe5+ {[%clk 0:00:08]}  Kc6 {[%clk 0:00:01]} 40. h5 {[%clk 0:00:08]}  Qd3 {[%clk 0:00:01]} 41. h6 {[%clk 0:00:08]}  Qd1+ {[%clk 0:00:01]} 42. Kg2 {[%clk 0:00:08]}  Qb1 {[%clk 0:00:00]} 43. Rh5 {[%clk 0:00:07]} 1-0

[Event "December 5 Late 2023"]
[Site "https://www.chess.com"]
[Date "2023.12.05"]
[Round "9"]
[White "Hoffmann, Asa"]
[Black "Lin, Bryan Enming"]
[Result "0-1"]
[Board "68"]
[TimeControl "180+1"]
[WhiteFideId "2001470"]
[BlackFideId "30987121"]
[WhiteElo "2410"]
[BlackElo "2510"]
[WhiteTeam "USA"]
[BlackTeam "USA"]
[WhiteClock "0:00:00"]
[BlackClock "0:00:15"]

1. d4 {[%clk 0:02:57]}  Nf6 {[%clk 0:02:59]} 2. Bg5 {[%clk 0:02:54]}  e6 {[%clk 0:02:56]} 3. Nd2 {[%clk 0:02:53]}  h6 {[%clk 0:02:53]} 4. Bh4 {[%clk 0:02:53]}  c5 {[%clk 0:02:48]} 5. e3 {[%clk 0:02:52]}  Nc6 {[%clk 0:02:46]} 6. c3 {[%clk 0:02:51]}  Be7 {[%clk 0:02:46]} 7. Bd3 {[%clk 0:02:51]}  O-O {[%clk 0:02:45]} 8. Ngf3 {[%clk 0:02:51]}  b6 {[%clk 0:02:45]} 9. O-O {[%clk 0:02:51]}  Bb7 {[%clk 0:02:45]} 10. Qe2 {[%clk 0:02:50]}  a6 {[%clk 0:02:44]} 11. a4 {[%clk 0:02:49]}  Re8 {[%clk 0:02:42]} 12. h3 {[%clk 0:02:49]}  Rc8 {[%clk 0:02:41]} 13. Bg3 {[%clk 0:02:48]}  d5 {[%clk 0:02:35]} 14. Bxa6 {[%clk 0:02:43]}  Bxa6 {[%clk 0:02:31]} 15. Qxa6 {[%clk 0:02:42]}  Na5 {[%clk 0:02:25]} 16. Qe2 {[%clk 0:02:33]}  Bd6 {[%clk 0:02:22]} 17. Ne5 {[%clk 0:02:32]}  Qc7 {[%clk 0:02:18]} 18. Rfc1 {[%clk 0:02:23]}  Nd7 {[%clk 0:01:51]} 19. f4 {[%clk 0:02:20]}  Nf6 {[%clk 0:01:51]} 20. Bh4 {[%clk 0:02:16]}  Nd7 {[%clk 0:01:44]} 21. Qb5 {[%clk 0:02:13]}  Nb8 {[%clk 0:01:31]} 22. b4 {[%clk 0:02:06]}  Nb7 {[%clk 0:01:29]} 23. bxc5 {[%clk 0:01:59]}  bxc5 {[%clk 0:01:29]} 24. Rab1 {[%clk 0:01:59]}  Na5 {[%clk 0:01:24]} 25. Qb6 {[%clk 0:01:51]}  cxd4 {[%clk 0:01:24]} 26. exd4 {[%clk 0:01:47]}  f6 {[%clk 0:01:15]} 27. Qxc7 {[%clk 0:01:44]}  Rxc7 {[%clk 0:01:16]} 28. Nd3 {[%clk 0:01:42]}  Rec8 {[%clk 0:01:11]} 29. Rb5 {[%clk 0:01:38]}  Nc4 {[%clk 0:01:05]} 30. Nxc4 {[%clk 0:01:33]}  Rxc4 {[%clk 0:01:06]} 31. Be1 {[%clk 0:01:29]}  Rxa4 {[%clk 0:01:05]} 32. Rb6 {[%clk 0:01:23]}  Nc6 {[%clk 0:01:01]} 33. Rcb1 {[%clk 0:01:15]}  Bf8 {[%clk 0:00:39]} 34. Rb7 {[%clk 0:00:59]}  Ra3 {[%clk 0:00:36]} 35. Kf2 {[%clk 0:00:57]}  Nxd4 {[%clk 0:00:35]} 36. Rb8 {[%clk 0:00:51]}  Ra2+ {[%clk 0:00:34]} 37. Kf1 {[%clk 0:00:43]}  Rxb8 {[%clk 0:00:30]} 38. Rxb8 {[%clk 0:00:42]}  Nf5 {[%clk 0:00:31]} 39. Nc5 {[%clk 0:00:37]}  Kf7 {[%clk 0:00:30]} 40. Nxe6 {[%clk 0:00:34]}  Kxe6 {[%clk 0:00:29]} 41. Rxf8 {[%clk 0:00:34]}  Ne3+ {[%clk 0:00:29]} 42. Kg1 {[%clk 0:00:33]}  Rxg2+ {[%clk 0:00:30]} 43. Kh1 {[%clk 0:00:33]}  Ke7 {[%clk 0:00:29]} 44. Rc8 {[%clk 0:00:32]}  Re2 {[%clk 0:00:29]} 45. Bg3 {[%clk 0:00:30]}  Nf5 {[%clk 0:00:27]} 46. Bh2 {[%clk 0:00:29]}  Nh4 {[%clk 0:00:25]} 47. Rc7+ {[%clk 0:00:25]}  Kf8 {[%clk 0:00:20]} 48. Rc8+ {[%clk 0:00:21]}  Kf7 {[%clk 0:00:20]} 49. Rc7+ {[%clk 0:00:21]}  Kg6 {[%clk 0:00:20]} 50. f5+ {[%clk 0:00:19]}  Kh7 {[%clk 0:00:20]} 51. Bd6 {[%clk 0:00:18]}  Nxf5 {[%clk 0:00:18]} 52. Bf8 {[%clk 0:00:17]}  Kg8 {[%clk 0:00:18]} 53. Bb4 {[%clk 0:00:15]}  h5 {[%clk 0:00:18]} 54. Kg1 {[%clk 0:00:15]}  g5 {[%clk 0:00:17]} 55. Rc6 {[%clk 0:00:13]}  Kf7 {[%clk 0:00:17]} 56. Rc7+ {[%clk 0:00:13]}  Kg6 {[%clk 0:00:17]} 57. Rc6 {[%clk 0:00:13]}  g4 {[%clk 0:00:17]} 58. hxg4 {[%clk 0:00:13]}  hxg4 {[%clk 0:00:18]} 59. Kf1 {[%clk 0:00:13]}  Ng3+ {[%clk 0:00:18]} 60. Kg1 {[%clk 0:00:13]}  Ne4 {[%clk 0:00:17]} 61. Be7 {[%clk 0:00:11]}  g3 {[%clk 0:00:16]} 62. c4 {[%clk 0:00:11]}  d4 {[%clk 0:00:15]} 63. c5 {[%clk 0:00:09]}  d3 {[%clk 0:00:15]} 64. Rd6 {[%clk 0:00:09]}  Nxd6 {[%clk 0:00:14]} 65. cxd6 {[%clk 0:00:00]}  d2 {[%clk 0:00:15]} 0-1

[Event "December 5 Late 2023"]
[Site "https://www.chess.com"]
[Date "2023.12.05"]
[Round "9"]
[White "Calin, Alexandru"]
[Black "YurasovMat-2012"]
[Result "0-1"]
[Board "69"]
[TimeControl "180+1"]
[WhiteFideId "1222961"]
[WhiteElo "2509"]
[BlackElo "2399"]
[WhiteTeam "ROU"]
[WhiteClock "0:00:05"]
[BlackClock "0:01:08"]

1. d4 {[%clk 0:02:51]}  d5 {[%clk 0:02:57]} 2. Nc3 {[%clk 0:02:51]}  c5 {[%clk 0:02:54]} 3. e4 {[%clk 0:02:48]}  e6 {[%clk 0:02:48]} 4. Nf3 {[%clk 0:02:44]}  Nc6 {[%clk 0:02:47]} 5. exd5 {[%clk 0:02:32]}  exd5 {[%clk 0:02:43]} 6. dxc5 {[%clk 0:02:30]}  Nf6 {[%clk 0:02:43]} 7. Be3 {[%clk 0:02:27]}  Be7 {[%clk 0:02:31]} 8. Bb5 {[%clk 0:02:28]}  O-O {[%clk 0:02:29]} 9. Bxc6 {[%clk 0:02:28]}  bxc6 {[%clk 0:02:27]} 10. h3 {[%clk 0:02:06]}  Rb8 {[%clk 0:02:21]} 11. Na4 {[%clk 0:01:28]}  Ne4 {[%clk 0:02:06]} 12. O-O {[%clk 0:01:25]}  Ba6 {[%clk 0:01:59]} 13. Re1 {[%clk 0:01:22]}  Bb5 {[%clk 0:01:54]} 14. Nc3 {[%clk 0:01:01]}  Nxc5 {[%clk 0:01:33]} 15. Nxb5 {[%clk 0:00:55]}  Rxb5 {[%clk 0:01:32]} 16. Bd4 {[%clk 0:00:51]}  Ne6 {[%clk 0:01:31]} 17. Bc3 {[%clk 0:00:51]}  Bf6 {[%clk 0:01:29]} 18. Ne5 {[%clk 0:00:47]}  Qd6 {[%clk 0:01:24]} 19. Nc4 {[%clk 0:00:38]}  Qf4 {[%clk 0:01:22]} 20. Bxf6 {[%clk 0:00:33]}  Qxf6 {[%clk 0:01:23]} 21. Ne5 {[%clk 0:00:34]}  Rc8 {[%clk 0:01:18]} 22. b3 {[%clk 0:00:33]}  Rb4 {[%clk 0:01:12]} 23. c3 {[%clk 0:00:33]}  Re4 {[%clk 0:01:11]} 24. Rxe4 {[%clk 0:00:08]}  dxe4 {[%clk 0:01:11]} 25. Nc4 {[%clk 0:00:07]}  Qxc3 {[%clk 0:01:09]} 26. Qe2 {[%clk 0:00:05]}  Qxa1+ {[%clk 0:01:08]} 0-1

[Event "December 5 Late 2023"]
[Site "https://www.chess.com"]
[Date "2023.12.05"]
[Round "9"]
[White "Kostiukov, Alexandr"]
[Black "Ferreira, Vitor Hugo Vieira"]
[Result "0-1"]
[Board "70"]
[TimeControl "180+1"]
[WhiteFideId "14108100"]
[BlackFideId "2119765"]
[WhiteElo "2375"]
[BlackElo "2508"]
[WhiteTeam "UKR"]
[BlackTeam "BRA"]
[WhiteClock "0:02:09"]
[BlackClock "0:02:09"]

1. g3 {[%clk 0:03:00]}  d5 {[%clk 0:02:56]} 2. Bg2 {[%clk 0:03:00]}  Nf6 {[%clk 0:02:53]} 3. d3 {[%clk 0:03:01]}  Bf5 {[%clk 0:02:49]} 4. Nc3 {[%clk 0:02:59]}  e6 {[%clk 0:02:46]} 5. e4 {[%clk 0:02:59]}  Bg6 {[%clk 0:02:45]} 6. Qe2 {[%clk 0:02:58]}  Be7 {[%clk 0:02:45]} 7. Nh3 {[%clk 0:02:55]}  c5 {[%clk 0:02:42]} 8. Nf4 {[%clk 0:02:54]}  d4 {[%clk 0:02:37]} 9. Nb1 {[%clk 0:02:51]}  e5 {[%clk 0:02:36]} 10. Nxg6 {[%clk 0:02:51]}  hxg6 {[%clk 0:02:36]} 11. O-O {[%clk 0:02:50]}  Nc6 {[%clk 0:02:32]} 12. a4 {[%clk 0:02:50]}  O-O {[%clk 0:02:25]} 13. Na3 {[%clk 0:02:51]}  Ne8 {[%clk 0:02:22]} 14. f4 {[%clk 0:02:47]}  exf4 {[%clk 0:02:21]} 15. gxf4 {[%clk 0:02:46]}  Rc8 {[%clk 0:02:18]} 16. Bd2 {[%clk 0:02:43]}  Nd6 {[%clk 0:02:16]} 17. b3 {[%clk 0:02:39]}  a6 {[%clk 0:02:16]} 18. Nc4 {[%clk 0:02:39]}  b5 {[%clk 0:02:14]} 19. axb5 {[%clk 0:02:38]}  axb5 {[%clk 0:02:15]} 20. Nxd6 {[%clk 0:02:37]}  Bxd6 {[%clk 0:02:15]} 21. e5 {[%clk 0:02:25]}  Bb8 {[%clk 0:02:09]} 22. Ra4 {[%clk 0:02:09]}  bxa4 {[%clk 0:02:09]} 0-1

[Event "December 5 Late 2023"]
[Site "https://www.chess.com"]
[Date "2023.12.05"]
[Round "9"]
[White "Rees, Ioan"]
[Black "Teumer, Joerg, Dr."]
[Result "1-0"]
[Board "73"]
[TimeControl "180+1"]
[WhiteFideId "1801236"]
[BlackFideId "4643526"]
[WhiteElo "2498"]
[BlackElo "2151"]
[WhiteTeam "WLS"]
[BlackTeam "GER"]
[WhiteClock "0:00:21"]
[BlackClock "0:00:00"]

1. e4 {[%clk 0:03:00]}  c6 {[%clk 0:02:55]} 2. Nc3 {[%clk 0:02:59]}  d5 {[%clk 0:02:53]} 3. Nf3 {[%clk 0:02:59]}  dxe4 {[%clk 0:02:50]} 4. Nxe4 {[%clk 0:03:00]}  Nf6 {[%clk 0:02:49]} 5. Qe2 {[%clk 0:03:00]}  Nxe4 {[%clk 0:02:46]} 6. Qxe4 {[%clk 0:03:00]}  Nd7 {[%clk 0:02:43]} 7. Bc4 {[%clk 0:03:00]}  Nf6 {[%clk 0:02:33]} 8. Ne5 {[%clk 0:03:00]}  e6 {[%clk 0:02:21]} 9. Qe2 {[%clk 0:03:00]}  Bd6 {[%clk 0:02:12]} 10. d4 {[%clk 0:02:47]}  O-O {[%clk 0:02:01]} 11. Bg5 {[%clk 0:02:47]}  Be7 {[%clk 0:01:59]} 12. O-O-O {[%clk 0:02:46]}  Nd5 {[%clk 0:01:55]} 13. Bxe7 {[%clk 0:02:38]}  Qxe7 {[%clk 0:01:55]} 14. Kb1 {[%clk 0:02:35]}  Qd6 {[%clk 0:01:37]} 15. h4 {[%clk 0:02:28]}  c5 {[%clk 0:01:07]} 16. dxc5 {[%clk 0:02:19]}  Qxc5 {[%clk 0:01:05]} 17. Bxd5 {[%clk 0:02:17]}  exd5 {[%clk 0:01:05]} 18. Qd2 {[%clk 0:02:08]}  Be6 {[%clk 0:01:01]} 19. h5 {[%clk 0:02:05]}  Rfe8 {[%clk 0:00:53]} 20. h6 {[%clk 0:02:03]}  g6 {[%clk 0:00:50]} 21. Nd3 {[%clk 0:02:00]}  Qd4 {[%clk 0:00:46]} 22. Nf4 {[%clk 0:01:55]}  Qxd2 {[%clk 0:00:45]} 23. Rxd2 {[%clk 0:01:56]}  Rad8 {[%clk 0:00:41]} 24. Rhd1 {[%clk 0:01:55]}  Kf8 {[%clk 0:00:35]} 25. b3 {[%clk 0:01:49]}  Rd6 {[%clk 0:00:28]} 26. Kc1 {[%clk 0:01:40]}  Red8 {[%clk 0:00:28]} 27. Rd4 {[%clk 0:01:38]}  Ke7 {[%clk 0:00:27]} 28. f3 {[%clk 0:01:38]}  b6 {[%clk 0:00:26]} 29. g4 {[%clk 0:01:38]}  f6 {[%clk 0:00:21]} 30. Re1 {[%clk 0:01:33]}  Kf7 {[%clk 0:00:21]} 31. c3 {[%clk 0:01:28]}  R8d7 {[%clk 0:00:21]} 32. Kd2 {[%clk 0:01:23]}  Rd8 {[%clk 0:00:21]} 33. a4 {[%clk 0:01:23]}  R8d7 {[%clk 0:00:21]} 34. Ra1 {[%clk 0:01:15]}  Rd8 {[%clk 0:00:20]} 35. a5 {[%clk 0:01:15]}  b5 {[%clk 0:00:19]} 36. Nd3 {[%clk 0:01:02]}  Bc8 {[%clk 0:00:11]} 37. Nc5 {[%clk 0:01:00]}  a6 {[%clk 0:00:11]} 38. Re1 {[%clk 0:00:58]}  Re8 {[%clk 0:00:10]} 39. Rxe8 {[%clk 0:00:48]}  Kxe8 {[%clk 0:00:11]} 40. Rd3 {[%clk 0:00:44]}  Kf7 {[%clk 0:00:11]} 41. Ke3 {[%clk 0:00:44]}  g5 {[%clk 0:00:11]} 42. Kd4 {[%clk 0:00:44]}  Kg6 {[%clk 0:00:10]} 43. Re3 {[%clk 0:00:43]}  Kf7 {[%clk 0:00:09]} 44. Re1 {[%clk 0:00:40]}  Kf8 {[%clk 0:00:08]} 45. Nd3 {[%clk 0:00:38]}  Kf7 {[%clk 0:00:08]} 46. Nb4 {[%clk 0:00:37]}  Kg6 {[%clk 0:00:07]} 47. Nxd5 {[%clk 0:00:30]}  Bb7 {[%clk 0:00:06]} 48. c4 {[%clk 0:00:30]}  bxc4 {[%clk 0:00:05]} 49. bxc4 {[%clk 0:00:31]}  Kxh6 {[%clk 0:00:05]} 50. Re7 {[%clk 0:00:29]}  Bxd5 {[%clk 0:00:05]} 51. cxd5 {[%clk 0:00:29]}  Kg6 {[%clk 0:00:03]} 52. Kc5 {[%clk 0:00:24]}  Rd8 {[%clk 0:00:03]} 53. d6 {[%clk 0:00:25]}  f5 {[%clk 0:00:03]} 54. Re6+ {[%clk 0:00:23]}  Kf7 {[%clk 0:00:03]} 55. gxf5 {[%clk 0:00:23]}  h5 {[%clk 0:00:02]} 56. Rh6 {[%clk 0:00:21]}  h4 {[%clk 0:00:02]} 57. Kc6 {[%clk 0:00:20]}  Rc8+ {[%clk 0:00:02]} 58. Kb7 {[%clk 0:00:20]}  Rd8 {[%clk 0:00:01]} 59. Kc7 {[%clk 0:00:20]}  Ra8 {[%clk 0:00:01]} 60. d7 {[%clk 0:00:20]}  Ra7+ {[%clk 0:00:00]} 61. Kc6 {[%clk 0:00:21]} 1-0

[Event "December 5 Late 2023"]
[Site "https://www.chess.com"]
[Date "2023.12.05"]
[Round "9"]
[White "Ladan, Nicholas"]
[Black "Monteiro, Luis Felipe Furtado"]
[Result "0-1"]
[Board "76"]
[TimeControl "180+1"]
[WhiteFideId "30918855"]
[BlackFideId "22702806"]
[WhiteElo "2486"]
[BlackElo "2098"]
[WhiteTeam "USA"]
[BlackTeam "BRA"]
[WhiteClock "0:00:02"]
[BlackClock "0:00:05"]

1. d4 {[%clk 0:02:53]}  Nf6 {[%clk 0:02:54]} 2. Nf3 {[%clk 0:02:54]}  d5 {[%clk 0:02:54]} 3. g3 {[%clk 0:02:51]}  c5 {[%clk 0:02:50]} 4. Bg2 {[%clk 0:02:51]}  Nc6 {[%clk 0:02:47]} 5. O-O {[%clk 0:02:51]}  g6 {[%clk 0:02:45]} 6. dxc5 {[%clk 0:02:50]}  Bg7 {[%clk 0:02:44]} 7. c3 {[%clk 0:02:47]}  a5 {[%clk 0:02:40]} 8. Nbd2 {[%clk 0:02:42]}  O-O {[%clk 0:02:39]} 9. a4 {[%clk 0:02:42]}  Bg4 {[%clk 0:02:36]} 10. h3 {[%clk 0:02:41]}  Bxf3 {[%clk 0:02:31]} 11. Bxf3 {[%clk 0:02:37]}  e6 {[%clk 0:02:31]} 12. Nb3 {[%clk 0:02:34]}  Qe7 {[%clk 0:02:24]} 13. Bg2 {[%clk 0:02:33]}  Nd7 {[%clk 0:02:24]} 14. Be3 {[%clk 0:02:30]}  Rfc8 {[%clk 0:02:22]} 15. Qd3 {[%clk 0:02:18]}  Nce5 {[%clk 0:02:22]} 16. Qb5 {[%clk 0:02:10]}  Rc7 {[%clk 0:02:06]} 17. Nxa5 {[%clk 0:01:56]}  Nxc5 {[%clk 0:02:02]} 18. b4 {[%clk 0:01:48]}  Ne4 {[%clk 0:01:48]} 19. Bxe4 {[%clk 0:01:38]}  dxe4 {[%clk 0:01:49]} 20. Bc5 {[%clk 0:01:38]}  Qd7 {[%clk 0:01:44]} 21. Bd4 {[%clk 0:01:12]}  Nc6 {[%clk 0:01:30]} 22. Bxg7 {[%clk 0:01:12]}  Kxg7 {[%clk 0:01:31]} 23. Rfd1 {[%clk 0:01:12]}  Qe7 {[%clk 0:01:26]} 24. Nxb7 {[%clk 0:01:09]}  Rb8 {[%clk 0:01:21]} 25. a5 {[%clk 0:01:03]}  Rbxb7 {[%clk 0:01:20]} 26. Qa4 {[%clk 0:00:58]}  Qf6 {[%clk 0:01:18]} 27. a6 {[%clk 0:00:55]}  Rb6 {[%clk 0:01:12]} 28. b5 {[%clk 0:00:47]}  Na7 {[%clk 0:01:08]} 29. Qa5 {[%clk 0:00:45]}  Nc8 {[%clk 0:00:53]} 30. c4 {[%clk 0:00:28]}  Rxc4 {[%clk 0:00:44]} 31. Rac1 {[%clk 0:00:24]}  e3 {[%clk 0:00:09]} 32. Rxc4 {[%clk 0:00:16]}  Qxf2+ {[%clk 0:00:09]} 33. Kh1 {[%clk 0:00:16]}  Qxe2 {[%clk 0:00:09]} 34. Qc3+ {[%clk 0:00:13]}  Kh6 {[%clk 0:00:05]} 35. Rh4+ {[%clk 0:00:10]}  Kg5 {[%clk 0:00:04]} 36. Qe5+ {[%clk 0:00:05]}  f5 {[%clk 0:00:05]} 37. Qf4+ {[%clk 0:00:04]}  Kf6 {[%clk 0:00:05]} 38. Rf1 {[%clk 0:00:03]}  Rd6 {[%clk 0:00:04]} 39. Rxh7 {[%clk 0:00:02]}  e5 {[%clk 0:00:04]} 40. Qh4+ {[%clk 0:00:02]}  Ke6 {[%clk 0:00:04]} 41. Rh6 {[%clk 0:00:02]}  Qxf1+ {[%clk 0:00:03]} 42. Kh2 {[%clk 0:00:01]}  Qf2+ {[%clk 0:00:04]} 43. Kh1 {[%clk 0:00:02]}  Rd1# {[%clk 0:00:05]} 0-1

[Event "December 5 Late 2023"]
[Site "https://www.chess.com"]
[Date "2023.12.05"]
[Round "9"]
[White "Vlassov, Nikolai"]
[Black "Buchenau, Frank"]
[Result "0-1"]
[Board "77"]
[TimeControl "180+1"]
[WhiteFideId "4103360"]
[BlackFideId "4604350"]
[WhiteElo "2628"]
[BlackElo "2419"]
[WhiteTeam "FID"]
[BlackTeam "GER"]
[WhiteClock "0:00:15"]
[BlackClock "0:01:24"]

1. e4 {[%clk 0:03:00]}  e6 {[%clk 0:03:00]} 2. d4 {[%clk 0:03:00]}  d5 {[%clk 0:03:00]} 3. e5 {[%clk 0:02:59]}  c5 {[%clk 0:03:00]} 4. c3 {[%clk 0:02:59]}  Qb6 {[%clk 0:03:00]} 5. Nf3 {[%clk 0:02:59]}  Bd7 {[%clk 0:03:01]} 6. a3 {[%clk 0:02:58]}  Bb5 {[%clk 0:03:00]} 7. c4 {[%clk 0:02:59]}  Bxc4 {[%clk 0:03:00]} 8. Bxc4 {[%clk 0:02:58]}  dxc4 {[%clk 0:03:01]} 9. d5 {[%clk 0:02:58]}  Qb3 {[%clk 0:03:01]} 10. Qxb3 {[%clk 0:02:29]}  cxb3 {[%clk 0:03:02]} 11. dxe6 {[%clk 0:02:14]}  fxe6 {[%clk 0:03:02]} 12. Nbd2 {[%clk 0:02:12]}  Ne7 {[%clk 0:03:00]} 13. Nxb3 {[%clk 0:02:07]}  Nd5 {[%clk 0:03:00]} 14. O-O {[%clk 0:02:00]}  Nc6 {[%clk 0:03:00]} 15. Ng5 {[%clk 0:01:48]}  Kd7 {[%clk 0:02:50]} 16. f4 {[%clk 0:01:43]}  Be7 {[%clk 0:02:43]} 17. Ne4 {[%clk 0:01:40]}  b6 {[%clk 0:02:42]} 18. Bd2 {[%clk 0:01:31]}  Rhf8 {[%clk 0:02:41]} 19. g3 {[%clk 0:01:26]}  c4 {[%clk 0:02:39]} 20. Nc1 {[%clk 0:01:25]}  b5 {[%clk 0:02:28]} 21. Ne2 {[%clk 0:01:21]}  a5 {[%clk 0:02:08]} 22. Rfb1 {[%clk 0:01:14]}  a4 {[%clk 0:02:05]} 23. N2c3 {[%clk 0:01:10]}  Nxc3 {[%clk 0:02:04]} 24. Bxc3 {[%clk 0:01:09]}  Kc7 {[%clk 0:01:59]} 25. Rd1 {[%clk 0:01:05]}  Rad8 {[%clk 0:01:59]} 26. Kf2 {[%clk 0:01:05]}  Rd5 {[%clk 0:01:57]} 27. Ke2 {[%clk 0:00:54]}  Rfd8 {[%clk 0:01:56]} 28. h4 {[%clk 0:00:47]}  h5 {[%clk 0:01:51]} 29. g4 {[%clk 0:00:39]}  hxg4 {[%clk 0:01:49]} 30. Rg1 {[%clk 0:00:39]}  Nd4+ {[%clk 0:01:48]} 31. Bxd4 {[%clk 0:00:27]}  Rxd4 {[%clk 0:01:49]} 32. Ke3 {[%clk 0:00:25]}  Rd3+ {[%clk 0:01:48]} 33. Ke2 {[%clk 0:00:25]}  R8d4 {[%clk 0:01:43]} 34. Nc3 {[%clk 0:00:19]}  Rd2+ {[%clk 0:01:41]} 35. Ke3 {[%clk 0:00:20]}  R4d3+ {[%clk 0:01:37]} 36. Ke4 {[%clk 0:00:20]}  Rxb2 {[%clk 0:01:35]} 37. Rxg4 {[%clk 0:00:15]}  Rxc3 {[%clk 0:01:34]} 38. Rxg7 {[%clk 0:00:15]}  Re2+ {[%clk 0:01:24]} 39. Kd4 {[%clk 0:00:15]}  Rd3# {[%clk 0:01:24]} 0-1